[Event "*** SCC Grand Prix: Titled Tuesday Blitz"]
[Site "Chess.com"]
[Date "2020.06.23"]
[Round "10"]
[White "Yoshikrov"]
[Black "j_coca"]
[Result "1-0"]
[WhiteElo "2034"]
[BlackElo "2179"]
[TimeControl "180+1"]
[EndTime "11:57:01 PDT"]
[Termination "Yoshikrov won by resignation"]

1. e4 {[%clk 0:03:00.9]} 1... Nf6 {[%clk 0:02:53.7]} 2. e5 {[%clk 0:03:00.9]}
2... Nd5 {[%clk 0:02:53.8]} 3. d4 {[%clk 0:03:01.4]} 3... d6 {[%clk 0:02:52.9]}
4. Nf3 {[%clk 0:03:00.4]} 4... Bg4 {[%clk 0:02:48.5]} 5. exd6 {[%clk 0:02:56.9]}
5... Qxd6 {[%clk 0:02:40.2]} 6. c3 {[%clk 0:02:56.5]} 6... Nc6 {[%clk
0:02:19.7]} 7. Be2 {[%clk 0:02:56.4]} 7... O-O-O {[%clk 0:02:16.4]} 8. O-O
{[%clk 0:02:56.1]} 8... h5 {[%clk 0:02:15.8]} 9. h3 {[%clk 0:02:50.7]} 9... f6
{[%clk 0:02:15.9]} 10. Nbd2 {[%clk 0:02:44]} 10... e5 {[%clk 0:02:09.5]} 11.
dxe5 {[%clk 0:02:37.6]} 11... fxe5 {[%clk 0:02:10.4]} 12. Ne4 {[%clk 0:02:32.1]}
12... Qe7 {[%clk 0:01:58.2]} 13. Bg5 {[%clk 0:02:20.1]} 13... Nf6 {[%clk
0:01:57.1]} 14. Qc2 {[%clk 0:02:19.9]} 14... Qf7 {[%clk 0:01:31.3]} 15. hxg4
{[%clk 0:02:04.7]} 15... hxg4 {[%clk 0:01:30.8]} 16. Nh4 {[%clk 0:02:01.3]}
16... Be7 {[%clk 0:01:27.5]} 17. g3 {[%clk 0:01:57.2]} 17... Nxe4 {[%clk
0:00:57.5]} 18. Qxe4 {[%clk 0:01:49.4]} 18... Bxg5 {[%clk 0:00:55.7]} 19. Qxg4+
{[%clk 0:01:49.5]} 19... Kb8 {[%clk 0:00:56.1]} 20. Qxg5 {[%clk 0:01:49.7]}
20... e4 {[%clk 0:00:49.9]} 21. Rad1 {[%clk 0:01:48.4]} 21... Rde8 {[%clk
0:00:49.3]} 22. Qf5 {[%clk 0:01:38.4]} 22... Qe7 {[%clk 0:00:46.3]} 23. Rd7
{[%clk 0:01:35.1]} 23... Qe5 {[%clk 0:00:38.1]} 24. Qxe5 {[%clk 0:01:33.7]}
24... Nxe5 {[%clk 0:00:39]} 25. Rxg7 {[%clk 0:01:33.6]} 25... Rd8 {[%clk
0:00:33.6]} 26. Rd1 {[%clk 0:01:32.4]} 26... Rxd1+ {[%clk 0:00:30.8]} 27. Bxd1
{[%clk 0:01:32]} 27... Rd8 {[%clk 0:00:31.7]} 28. Bb3 {[%clk 0:01:30.3]} 28...
c5 {[%clk 0:00:29.6]} 29. Kg2 {[%clk 0:01:26.4]} 29... Rd2 {[%clk 0:00:28.3]}
30. Re7 {[%clk 0:01:19]} 30... Ng4 {[%clk 0:00:21.2]} 31. Rxe4 {[%clk
0:01:06.9]} 31... Nxf2 {[%clk 0:00:20.9]} 32. Re8+ {[%clk 0:01:06.6]} 32... Kc7
{[%clk 0:00:19.3]} 33. Kf3 {[%clk 0:01:06.9]} 33... Rxb2 {[%clk 0:00:18.9]} 34.
Nf5 {[%clk 0:01:05.4]} 34... b6 {[%clk 0:00:17.3]} 35. Ne3 {[%clk 0:01:05]}
35... Nd3 {[%clk 0:00:15.1]} 36. g4 {[%clk 0:01:03.2]} 36... Ne1+ {[%clk
0:00:14.1]} 37. Kf4 {[%clk 0:01:01.8]} 37... Re2 {[%clk 0:00:13.6]} 38. Nd5+
{[%clk 0:01:00.9]} 38... Kd6 {[%clk 0:00:13.5]} 39. Rxe2 {[%clk 0:01:01.1]}
39... Nd3+ {[%clk 0:00:14.3]} 40. Kg3 {[%clk 0:01:00.2]} 40... Nc1 {[%clk
0:00:15.2]} 41. Rf2 {[%clk 0:00:59.9]} 41... b5 {[%clk 0:00:14.4]} 42. c4 {[%clk
0:00:58.6]} 42... a6 {[%clk 0:00:10.6]} 43. g5 {[%clk 0:00:57.7]} 43... Nd3
{[%clk 0:00:10.7]} 44. Rf6+ {[%clk 0:00:55.7]} 44... Ke5 {[%clk 0:00:10.9]} 45.
Rf8 {[%clk 0:00:56.2]} 1-0

[Event "*** SCC Grand Prix: Titled Tuesday Blitz"]
[Site "Chess.com"]
[Date "2020.06.23"]
[Round "10"]
[White "NMZanette"]
[Black "chessmaugli"]
[Result "0-1"]
[WhiteElo "2159"]
[BlackElo "2313"]
[TimeControl "180+1"]
[EndTime "11:57:02 PDT"]
[Termination "chessmaugli won by resignation"]

1. e4 {[%clk 0:03:00.9]} 1... c5 {[%clk 0:02:59]} 2. Nf3 {[%clk 0:03:00.7]} 2...
Nc6 {[%clk 0:02:58.9]} 3. Bb5 {[%clk 0:03:00.3]} 3... d6 {[%clk 0:02:55.4]} 4.
O-O {[%clk 0:03:00]} 4... Bd7 {[%clk 0:02:54.4]} 5. Re1 {[%clk 0:02:59.4]} 5...
Nf6 {[%clk 0:02:54.2]} 6. c3 {[%clk 0:02:59.2]} 6... a6 {[%clk 0:02:53.1]} 7.
Bf1 {[%clk 0:02:57.6]} 7... e6 {[%clk 0:02:51.5]} 8. d4 {[%clk 0:02:57.6]} 8...
cxd4 {[%clk 0:02:36.4]} 9. cxd4 {[%clk 0:02:57.3]} 9... d5 {[%clk 0:02:33.1]}
10. e5 {[%clk 0:02:55.4]} 10... Ne4 {[%clk 0:02:31.9]} 11. Nbd2 {[%clk
0:02:55.7]} 11... Nxd2 {[%clk 0:02:30.7]} 12. Bxd2 {[%clk 0:02:54.7]} 12... Be7
{[%clk 0:02:30.6]} 13. a3 {[%clk 0:02:52.7]} 13... O-O {[%clk 0:02:28.9]} 14. b4
{[%clk 0:02:49.3]} 14... Na7 {[%clk 0:02:24.1]} 15. Bd3 {[%clk 0:02:47.9]} 15...
Bb5 {[%clk 0:02:21.6]} 16. Bb1 {[%clk 0:02:47.1]} 16... Rc8 {[%clk 0:02:18.9]}
17. Bf4 {[%clk 0:02:29.7]} 17... Qc7 {[%clk 0:01:59.4]} 18. Bg5 {[%clk
0:02:22.8]} 18... h6 {[%clk 0:01:46.8]} 19. Bxe7 {[%clk 0:02:21.8]} 19... Qxe7
{[%clk 0:01:46.4]} 20. Bd3 {[%clk 0:01:50]} 20... Rc7 {[%clk 0:01:42.8]} 21.
Bxb5 {[%clk 0:01:35.1]} 21... Nxb5 {[%clk 0:01:41.1]} 22. Qd2 {[%clk 0:01:33]}
22... Rfc8 {[%clk 0:01:38.7]} 23. Ra2 {[%clk 0:01:11.9]} 23... Nc3 {[%clk
0:01:32.6]} 24. Rb2 {[%clk 0:01:07.6]} 24... Ne4 {[%clk 0:01:31.3]} 25. Qf4
{[%clk 0:01:02.1]} 25... Rc3 {[%clk 0:01:29.2]} 26. h4 {[%clk 0:00:48.8]} 26...
Rxa3 {[%clk 0:01:26.2]} 27. Rxe4 {[%clk 0:00:40.2]} 27... dxe4 {[%clk
0:01:24.8]} 28. Qxe4 {[%clk 0:00:40.8]} 28... Rac3 {[%clk 0:01:19.2]} 29. d5
{[%clk 0:00:29]} 29... exd5 {[%clk 0:01:12.8]} 30. Qxd5 {[%clk 0:00:28.5]} 30...
Rd8 {[%clk 0:01:02.5]} 31. Qe4 {[%clk 0:00:26.5]} 31... Rc1+ {[%clk 0:00:58.5]}
32. Kh2 {[%clk 0:00:26.4]} 32... Qc7 {[%clk 0:00:50.8]} 33. b5 {[%clk
0:00:24.6]} 33... a5 {[%clk 0:00:48.2]} 34. b6 {[%clk 0:00:24.6]} 34... Qc6
{[%clk 0:00:47.4]} 35. Qe3 {[%clk 0:00:23.8]} 35... Rc2 {[%clk 0:00:40.6]} 36.
Rxc2 {[%clk 0:00:20.5]} 36... Qxc2 {[%clk 0:00:39.3]} 37. e6 {[%clk 0:00:21.4]}
37... Re8 {[%clk 0:00:33.7]} 38. exf7+ {[%clk 0:00:21.4]} 38... Kxf7 {[%clk
0:00:33.5]} 39. Qf4+ {[%clk 0:00:21.9]} 39... Kg8 {[%clk 0:00:32.9]} 40. Qc7
{[%clk 0:00:19.3]} 40... Qxc7+ {[%clk 0:00:31.4]} 41. bxc7 {[%clk 0:00:18.8]}
41... Rc8 {[%clk 0:00:32]} 0-1

[Event "*** SCC Grand Prix: Titled Tuesday Blitz"]
[Site "Chess.com"]
[Date "2020.06.23"]
[Round "10"]
[White "Sanan_Sjugirov"]
[Black "Supernotar"]
[Result "0-1"]
[WhiteElo "2861"]
[BlackElo "2811"]
[TimeControl "180+1"]
[EndTime "11:57:03 PDT"]
[Termination "Supernotar won by resignation"]

1. e4 {[%clk 0:03:00.9]} 1... c6 {[%clk 0:03:00.1]} 2. d4 {[%clk 0:03:00]} 2...
d5 {[%clk 0:03:00.5]} 3. e5 {[%clk 0:02:59.9]} 3... Bf5 {[%clk 0:03:00.3]} 4.
Nf3 {[%clk 0:02:59.6]} 4... e6 {[%clk 0:03:00.7]} 5. Be2 {[%clk 0:02:59.8]} 5...
Nd7 {[%clk 0:03:00.6]} 6. O-O {[%clk 0:02:59.7]} 6... h6 {[%clk 0:03:00.5]} 7.
Nbd2 {[%clk 0:02:59.5]} 7... Ne7 {[%clk 0:03:00.9]} 8. Nb3 {[%clk 0:02:59.4]}
8... Bg6 {[%clk 0:03:00.8]} 9. Bd2 {[%clk 0:02:58.5]} 9... Nf5 {[%clk
0:03:00.6]} 10. Rc1 {[%clk 0:02:51.8]} 10... Be7 {[%clk 0:03:00]} 11. g4 {[%clk
0:02:29.6]} 11... Nh4 {[%clk 0:02:58.5]} 12. Nxh4 {[%clk 0:02:29.8]} 12... Bxh4
{[%clk 0:02:57.5]} 13. f4 {[%clk 0:02:30.7]} 13... Be4 {[%clk 0:02:51]} 14. Bf3
{[%clk 0:02:26.6]} 14... Bxf3 {[%clk 0:02:09.4]} 15. Qxf3 {[%clk 0:02:27.5]}
15... Qe7 {[%clk 0:02:07.9]} 16. Na5 {[%clk 0:02:16.7]} 16... O-O-O {[%clk
0:01:46.7]} 17. Qb3 {[%clk 0:02:13.6]} 17... Nb6 {[%clk 0:01:45]} 18. Bb4 {[%clk
0:02:09.6]} 18... Qc7 {[%clk 0:01:39.4]} 19. Qa3 {[%clk 0:01:50.1]} 19... Rd7
{[%clk 0:01:23.7]} 20. Bd6 {[%clk 0:01:45.1]} 20... Be7 {[%clk 0:01:20.2]} 21.
c4 {[%clk 0:00:52.5]} 21... dxc4 {[%clk 0:01:14.8]} 22. Bxc7 {[%clk 0:00:48.6]}
22... Bxa3 {[%clk 0:01:13.6]} 23. Bxb6 {[%clk 0:00:48.7]} 23... Bxb2 {[%clk
0:00:58.7]} 24. Bxa7 {[%clk 0:00:33.1]} 24... Bxc1 {[%clk 0:00:55.4]} 25. Rxc1
{[%clk 0:00:34]} 25... b5 {[%clk 0:00:55.7]} 26. Bb6 {[%clk 0:00:28]} 26... h5
{[%clk 0:00:53.2]} 27. g5 {[%clk 0:00:27.2]} 27... g6 {[%clk 0:00:53]} 28. Kf2
{[%clk 0:00:24.3]} 28... Rd5 {[%clk 0:00:50.9]} 29. Ke3 {[%clk 0:00:18.2]} 29...
Kd7 {[%clk 0:00:49.4]} 30. Bc5 {[%clk 0:00:09.4]} 30... Kc7 {[%clk 0:00:45.1]}
31. a4 {[%clk 0:00:04]} 31... Ra8 {[%clk 0:00:43.5]} 32. Bb4 {[%clk 0:00:03.5]}
32... Kb6 {[%clk 0:00:40.7]} 33. Nxc4+ {[%clk 0:00:02.2]} 33... bxc4 {[%clk
0:00:39.3]} 34. a5+ {[%clk 0:00:02.1]} 34... Kb5 {[%clk 0:00:37.3]} 35. Bc3
{[%clk 0:00:03]} 35... c5 {[%clk 0:00:35.3]} 36. Rb1+ {[%clk 0:00:03]} 36... Ka4
{[%clk 0:00:32.7]} 37. dxc5 {[%clk 0:00:02.7]} 37... Rd3+ {[%clk 0:00:31.8]} 0-1

[Event "*** SCC Grand Prix: Titled Tuesday Blitz"]
[Site "Chess.com"]
[Date "2020.06.23"]
[Round "10"]
[White "mishanick"]
[Black "kuban1991"]
[Result "0-1"]
[WhiteElo "2975"]
[BlackElo "2756"]
[TimeControl "180+1"]
[EndTime "11:57:04 PDT"]
[Termination "kuban1991 won by resignation"]

1. d4 {[%clk 0:03:00.9]} 1... g6 {[%clk 0:02:59.7]} 2. c4 {[%clk 0:03:01.4]}
2... Bg7 {[%clk 0:02:59.9]} 3. Nc3 {[%clk 0:03:02.1]} 3... c5 {[%clk 0:03:00.1]}
4. d5 {[%clk 0:03:02.6]} 4... Bxc3+ {[%clk 0:03:00.4]} 5. bxc3 {[%clk
0:03:03.5]} 5... f5 {[%clk 0:03:01]} 6. e4 {[%clk 0:03:03.6]} 6... fxe4 {[%clk
0:03:01.9]} 7. f3 {[%clk 0:03:04.1]} 7... e3 {[%clk 0:03:02.4]} 8. Bxe3 {[%clk
0:03:03]} 8... Qa5 {[%clk 0:03:02.7]} 9. Qc2 {[%clk 0:03:02.5]} 9... d6 {[%clk
0:03:02.9]} 10. Bd3 {[%clk 0:03:00.5]} 10... Nd7 {[%clk 0:03:02.5]} 11. f4
{[%clk 0:03:00.3]} 11... Ngf6 {[%clk 0:03:01.8]} 12. Nf3 {[%clk 0:02:54.9]}
12... Nb6 {[%clk 0:03:01.7]} 13. Ng5 {[%clk 0:02:46.4]} 13... Qa4 {[%clk
0:02:55.8]} 14. Qxa4+ {[%clk 0:02:34.3]} 14... Nxa4 {[%clk 0:02:56.7]} 15. Kd2
{[%clk 0:02:34.7]} 15... Bf5 {[%clk 0:02:47.2]} 16. Rhb1 {[%clk 0:02:15]} 16...
Rb8 {[%clk 0:02:21.3]} 17. Bxf5 {[%clk 0:01:16.3]} 17... gxf5 {[%clk 0:02:21.1]}
18. Kd3 {[%clk 0:01:17]} 18... Rg8 {[%clk 0:02:18.2]} 19. g3 {[%clk 0:01:17]}
19... h6 {[%clk 0:02:15]} 20. Ne6 {[%clk 0:01:17.1]} 20... Ne4 {[%clk 0:02:11]}
21. Rb3 {[%clk 0:01:17.2]} 21... a6 {[%clk 0:01:41.5]} 22. Rab1 {[%clk
0:01:15.5]} 22... b5 {[%clk 0:01:33.8]} 23. cxb5 {[%clk 0:01:15.4]} 23... axb5
{[%clk 0:01:33.8]} 24. Rxb5 {[%clk 0:00:43.6]} 24... Rxb5 {[%clk 0:01:33.3]} 25.
Nc7+ {[%clk 0:00:32.7]} 25... Kd7 {[%clk 0:01:31.5]} 26. Nxb5 {[%clk 0:00:33.2]}
26... Ra8 {[%clk 0:01:19.5]} 27. c4 {[%clk 0:00:32.4]} 27... Nb6 {[%clk
0:01:13.7]} 28. a3 {[%clk 0:00:30.9]} 28... Ra4 {[%clk 0:01:09.1]} 29. Rc1
{[%clk 0:00:29.9]} 29... h5 {[%clk 0:00:57.5]} 30. Rc2 {[%clk 0:00:19.2]} 30...
e6 {[%clk 0:00:55.1]} 31. dxe6+ {[%clk 0:00:18.4]} 31... Kxe6 {[%clk 0:00:56]}
32. Bc1 {[%clk 0:00:16.9]} 32... Kd7 {[%clk 0:00:52.9]} 33. Bb2 {[%clk 0:00:12]}
33... Kc6 {[%clk 0:00:51.4]} 34. Bc1 {[%clk 0:00:06.5]} 34... Nxc4 {[%clk
0:00:41.9]} 35. Rxc4 {[%clk 0:00:06.8]} 35... Rxc4 {[%clk 0:00:42.2]} 36. Na7+
{[%clk 0:00:05.6]} 36... Kd5 {[%clk 0:00:42.3]} 37. Bb2 {[%clk 0:00:03.5]} 37...
Ra4 {[%clk 0:00:37.6]} 38. Nb5 {[%clk 0:00:02.2]} 38... Kc6 {[%clk 0:00:35.1]}
39. Nc3 {[%clk 0:00:02]} 39... Nxc3 {[%clk 0:00:35.2]} 40. Kxc3 {[%clk
0:00:02.9]} 40... Re4 {[%clk 0:00:35.2]} 0-1

[Event "*** SCC Grand Prix: Titled Tuesday Blitz"]
[Site "Chess.com"]
[Date "2020.06.23"]
[Round "10"]
[White "BJthechessgod"]
[Black "SilviusTiberius"]
[Result "1-0"]
[WhiteElo "2242"]
[BlackElo "2388"]
[TimeControl "180+1"]
[EndTime "11:57:06 PDT"]
[Termination "BJthechessgod won by resignation"]

1. e4 {[%clk 0:03:00.9]} 1... a5 {[%clk 0:02:56.9]} 2. Bc4 {[%clk 0:02:57.2]}
2... h5 {[%clk 0:02:57.8]} 3. d4 {[%clk 0:02:55.8]} 3... e6 {[%clk 0:02:58.2]}
4. Nc3 {[%clk 0:02:50.6]} 4... c6 {[%clk 0:02:58.2]} 5. e5 {[%clk 0:02:48.4]}
5... d5 {[%clk 0:02:54]} 6. exd6 {[%clk 0:02:43.6]} 6... Nf6 {[%clk 0:02:53.4]}
7. Bg5 {[%clk 0:02:41.4]} 7... Bxd6 {[%clk 0:02:51.1]} 8. Nf3 {[%clk 0:02:39.2]}
8... a4 {[%clk 0:02:50.6]} 9. Bxf6 {[%clk 0:02:32.8]} 9... gxf6 {[%clk
0:02:49.3]} 10. Qe2 {[%clk 0:02:27]} 10... a3 {[%clk 0:02:47.9]} 11. O-O {[%clk
0:02:06.6]} 11... axb2 {[%clk 0:02:46.9]} 12. Rab1 {[%clk 0:02:06.6]} 12... b5
{[%clk 0:02:42.2]} 13. Bb3 {[%clk 0:02:04.7]} 13... h4 {[%clk 0:01:59.4]} 14. d5
{[%clk 0:02:00.9]} 14... e5 {[%clk 0:01:46.4]} 15. dxc6 {[%clk 0:01:51.8]} 15...
h3 {[%clk 0:01:43.8]} 16. Nxb5 {[%clk 0:01:39.8]} 16... Ba6 {[%clk 0:00:38.7]}
17. Rfd1 {[%clk 0:01:32.8]} 17... Bxb5 {[%clk 0:00:17.1]} 18. Qxb5 {[%clk
0:01:33.7]} 18... Qc7 {[%clk 0:00:15.1]} 19. Qb7 {[%clk 0:01:18.1]} 19... Ra7
{[%clk 0:00:14.3]} 20. Qxc7 {[%clk 0:01:00.4]} 20... Bxc7 {[%clk 0:00:14.1]} 21.
Rxb2 {[%clk 0:01:00.7]} 21... Nxc6 {[%clk 0:00:13.1]} 22. Bd5 {[%clk 0:01:00]}
22... Ne7 {[%clk 0:00:10.7]} 23. c4 {[%clk 0:00:54.4]} 23... hxg2 {[%clk
0:00:10.5]} 24. Kxg2 {[%clk 0:00:53.1]} 24... Nxd5 {[%clk 0:00:07.5]} 25. cxd5
{[%clk 0:00:52.1]} 25... e4 {[%clk 0:00:08]} 26. Nd4 {[%clk 0:00:45.8]} 26...
Rxh2+ {[%clk 0:00:07.1]} 27. Kf1 {[%clk 0:00:46]} 27... Rh1+ {[%clk 0:00:06.5]}
28. Ke2 {[%clk 0:00:46.5]} 28... Rxd1 {[%clk 0:00:07.1]} 29. Kxd1 {[%clk
0:00:47.4]} 29... Be5 {[%clk 0:00:07]} 30. Nc6 {[%clk 0:00:37.2]} 30... Rd7
{[%clk 0:00:05.5]} 31. Rd2 {[%clk 0:00:32.4]} 31... Bd6 {[%clk 0:00:04.2]} 32.
a4 {[%clk 0:00:30.7]} 32... f5 {[%clk 0:00:04.6]} 33. a5 {[%clk 0:00:28.9]}
33... Bc5 {[%clk 0:00:05.2]} 34. a6 {[%clk 0:00:27.8]} 34... Rc7 {[%clk
0:00:04.8]} 35. Rc2 {[%clk 0:00:25.3]} 35... Bb6 {[%clk 0:00:04.4]} 36. Rb2
{[%clk 0:00:25.1]} 36... Bc5 {[%clk 0:00:03.2]} 37. Rb8+ {[%clk 0:00:23]} 1-0

[Event "*** SCC Grand Prix: Titled Tuesday Blitz"]
[Site "Chess.com"]
[Date "2020.06.23"]
[Round "10"]
[White "gumimis"]
[Black "Boninknights"]
[Result "1-0"]
[WhiteElo "2168"]
[BlackElo "2294"]
[TimeControl "180+1"]
[EndTime "11:57:12 PDT"]
[Termination "gumimis won by checkmate"]

1. e4 {[%clk 0:03:00.7]} 1... c5 {[%clk 0:02:56.3]} 2. Nf3 {[%clk 0:03:00.8]}
2... Nc6 {[%clk 0:02:54.3]} 3. d4 {[%clk 0:03:01.2]} 3... cxd4 {[%clk
0:02:52.6]} 4. Nxd4 {[%clk 0:03:02.1]} 4... e5 {[%clk 0:02:51.7]} 5. Nb5 {[%clk
0:03:00.7]} 5... d6 {[%clk 0:02:50.8]} 6. N1c3 {[%clk 0:03:00]} 6... a6 {[%clk
0:02:49.5]} 7. Na3 {[%clk 0:03:00.1]} 7... Be6 {[%clk 0:02:49.1]} 8. Nc4 {[%clk
0:02:57.8]} 8... Rc8 {[%clk 0:02:47]} 9. Ne3 {[%clk 0:02:51.2]} 9... Nd4 {[%clk
0:02:44]} 10. Bd3 {[%clk 0:02:45.1]} 10... Ne7 {[%clk 0:02:41.7]} 11. O-O {[%clk
0:02:36.9]} 11... g6 {[%clk 0:02:40.4]} 12. Ncd5 {[%clk 0:02:17.3]} 12... Bg7
{[%clk 0:02:31]} 13. c3 {[%clk 0:02:15.7]} 13... Ndc6 {[%clk 0:02:29]} 14. Bc2
{[%clk 0:02:03.7]} 14... O-O {[%clk 0:02:24.8]} 15. b3 {[%clk 0:01:56.5]} 15...
Bxd5 {[%clk 0:02:18.8]} 16. Nxd5 {[%clk 0:01:56.4]} 16... Nxd5 {[%clk
0:02:17.5]} 17. Qxd5 {[%clk 0:01:56.3]} 17... Qe7 {[%clk 0:01:58.6]} 18. Bb2
{[%clk 0:01:53.7]} 18... Nb4 {[%clk 0:01:51.8]} 19. Qd2 {[%clk 0:01:42.9]} 19...
Nxc2 {[%clk 0:01:48.1]} 20. Qxc2 {[%clk 0:01:43.5]} 20... b5 {[%clk 0:01:45.4]}
21. Rad1 {[%clk 0:01:39.6]} 21... f5 {[%clk 0:01:42.2]} 22. f3 {[%clk
0:01:38.2]} 22... Rc6 {[%clk 0:01:37.5]} 23. Qd3 {[%clk 0:01:37.5]} 23... Qe6
{[%clk 0:01:31.3]} 24. Qb1 {[%clk 0:01:34.9]} 24... a5 {[%clk 0:01:19.4]} 25.
Qd3 {[%clk 0:01:32.7]} 25... Rb8 {[%clk 0:01:12.1]} 26. Qe2 {[%clk 0:01:08.4]}
26... a4 {[%clk 0:01:06.8]} 27. Rd5 {[%clk 0:01:06.7]} 27... axb3 {[%clk
0:01:02.1]} 28. axb3 {[%clk 0:01:07]} 28... Rcb6 {[%clk 0:00:56.3]} 29. Rfd1
{[%clk 0:01:04]} 29... Bh6 {[%clk 0:00:53.3]} 30. Ba3 {[%clk 0:01:01.6]} 30...
fxe4 {[%clk 0:00:44.7]} 31. fxe4 {[%clk 0:00:59.3]} 31... Ra6 {[%clk 0:00:32.8]}
32. Bxd6 {[%clk 0:00:55.7]} 32... Rba8 {[%clk 0:00:30.4]} 33. Bxe5 {[%clk
0:00:28.3]} 33... Ra2 {[%clk 0:00:21]} 34. Qxb5 {[%clk 0:00:21.1]} 34... Be3+
{[%clk 0:00:17.5]} 35. Kh1 {[%clk 0:00:19.7]} 35... Qg4 {[%clk 0:00:12.9]} 36.
Rd8+ {[%clk 0:00:16.7]} 36... Kf7 {[%clk 0:00:11.3]} 37. Qe8# {[%clk 0:00:16.4]}
1-0

[Event "*** SCC Grand Prix: Titled Tuesday Blitz"]
[Site "Chess.com"]
[Date "2020.06.23"]
[Round "10"]
[White "Andrii_Prydun"]
[Black "Baby_Legs"]
[Result "1-0"]
[WhiteElo "2413"]
[BlackElo "2587"]
[TimeControl "180+1"]
[EndTime "11:57:13 PDT"]
[Termination "Andrii_Prydun won by resignation"]

1. d4 {[%clk 0:03:00.9]} 1... g6 {[%clk 0:03:00.9]} 2. Nc3 {[%clk 0:02:43]} 2...
Bg7 {[%clk 0:03:00.3]} 3. Bf4 {[%clk 0:02:43]} 3... d6 {[%clk 0:03:00.3]} 4. Qd2
{[%clk 0:02:43.2]} 4... a6 {[%clk 0:02:57.3]} 5. O-O-O {[%clk 0:02:40.8]} 5...
e6 {[%clk 0:02:54.4]} 6. h4 {[%clk 0:02:39.7]} 6... h6 {[%clk 0:02:54.2]} 7. Nf3
{[%clk 0:02:38.2]} 7... b5 {[%clk 0:02:54.1]} 8. a3 {[%clk 0:02:37.5]} 8... Bb7
{[%clk 0:02:54]} 9. e4 {[%clk 0:02:36.9]} 9... Nd7 {[%clk 0:02:54]} 10. Bd3
{[%clk 0:02:35.6]} 10... Ne7 {[%clk 0:02:53.6]} 11. d5 {[%clk 0:02:15.8]} 11...
e5 {[%clk 0:02:49.1]} 12. Be3 {[%clk 0:02:15.5]} 12... Nc5 {[%clk 0:02:47.2]}
13. h5 {[%clk 0:02:05.4]} 13... g5 {[%clk 0:02:44.3]} 14. Nxg5 {[%clk
0:02:04.5]} 14... hxg5 {[%clk 0:02:42.4]} 15. Bxg5 {[%clk 0:02:05.4]} 15... Rg8
{[%clk 0:02:25.3]} 16. h6 {[%clk 0:01:58.4]} 16... Bh8 {[%clk 0:02:25.3]} 17.
Be2 {[%clk 0:01:55.4]} 17... Qd7 {[%clk 0:02:19]} 18. h7 {[%clk 0:01:55.1]}
18... Rg6 {[%clk 0:02:13.7]} 19. Bh5 {[%clk 0:01:49.6]} 19... Rg7 {[%clk
0:02:09.5]} 20. Bf6 {[%clk 0:01:24.9]} 20... O-O-O {[%clk 0:01:56.9]} 21. Bxg7
{[%clk 0:01:24.5]} 21... Bxg7 {[%clk 0:01:57.8]} 22. Bxf7 {[%clk 0:01:22]} 22...
Kb8 {[%clk 0:01:44.5]} 23. b4 {[%clk 0:00:41.2]} 23... Na4 {[%clk 0:01:44]} 24.
Nxa4 {[%clk 0:00:40.8]} 24... bxa4 {[%clk 0:01:44.9]} 25. Qg5 {[%clk 0:00:40.8]}
25... Bh8 {[%clk 0:01:39.3]} 26. Be6 {[%clk 0:00:40]} 26... Qe8 {[%clk
0:01:38.9]} 27. Rd3 {[%clk 0:00:40]} 27... Ng6 {[%clk 0:01:31.9]} 28. g3 {[%clk
0:00:34.6]} 28... Nf4 {[%clk 0:01:19.6]} 29. gxf4 {[%clk 0:00:33.9]} 29... exf4
{[%clk 0:01:20.5]} 30. Rdh3 {[%clk 0:00:23.1]} 30... a5 {[%clk 0:01:19.7]} 31.
Qg8 {[%clk 0:00:22.8]} 31... Qe7 {[%clk 0:01:18.2]} 32. Rg1 {[%clk 0:00:20.3]}
32... Ka7 {[%clk 0:01:12.9]} 33. Qf7 {[%clk 0:00:13.2]} 33... Qxf7 {[%clk
0:01:05.7]} 34. Bxf7 {[%clk 0:00:14]} 34... axb4 {[%clk 0:01:06.3]} 35. Rg8
{[%clk 0:00:13.4]} 35... bxa3 {[%clk 0:01:04.2]} 36. Rxa3 {[%clk 0:00:13]} 36...
Rb8 {[%clk 0:01:01.7]} 37. Rxb8 {[%clk 0:00:11.6]} 37... Kxb8 {[%clk 0:01:02]}
38. Rh3 {[%clk 0:00:09]} 38... Ba6 {[%clk 0:01:01.6]} 39. Rh5 {[%clk 0:00:07.4]}
39... a3 {[%clk 0:01:01.8]} 40. e5 {[%clk 0:00:05.2]} 40... Ka7 {[%clk
0:00:59.9]} 41. Rg5 {[%clk 0:00:02.1]} 41... a2 {[%clk 0:00:59.5]} 42. Kb2
{[%clk 0:00:02]} 42... Bc4 {[%clk 0:00:59.9]} 43. c3 {[%clk 0:00:01.3]} 43...
Kb6 {[%clk 0:00:55.3]} 44. Rg8 {[%clk 0:00:01.5]} 44... Bxe5 {[%clk 0:00:54.3]}
45. h8=Q {[%clk 0:00:02.4]} 45... Bxh8 {[%clk 0:00:52.8]} 46. Rxh8 {[%clk
0:00:03.3]} 46... Kc5 {[%clk 0:00:53.1]} 47. Rh4 {[%clk 0:00:04.2]} 47... f3
{[%clk 0:00:52.6]} 48. Rf4 {[%clk 0:00:04.3]} 48... Be2 {[%clk 0:00:52.3]} 49.
Bh5 {[%clk 0:00:04.3]} 49... Bc4 {[%clk 0:00:52.1]} 50. Bxf3 {[%clk 0:00:04.4]}
50... Bd3 {[%clk 0:00:51.2]} 51. Rf7 {[%clk 0:00:04.6]} 51... Kb6 {[%clk
0:00:51]} 52. Kxa2 {[%clk 0:00:05]} 52... Bc4+ {[%clk 0:00:51.9]} 53. Kb2 {[%clk
0:00:05.2]} 53... Bxd5 {[%clk 0:00:52.6]} 54. Bxd5 {[%clk 0:00:04.3]} 1-0